[Event "African Individual Chess-ch Women 2024"]
[Site "Accra"]
[Date "2024.03.18"]
[Round "7.7"]
[White "Boshoma, Chisomo"]
[Black "Laubscher, Anzel"]
[Result "1/2-1/2"]
[ECO "B78"]
[WhiteElo "1780"]
[BlackElo "1820"]
[Annotator "NA RC"]
[PlyCount "79"]
[EventDate "2024.03.13"]
[EventCountry "GHA"]
[SourceTitle "playchess.com"]
[Source "ChessBase"]
[SourceQuality "1"]
[TimeControl "5400+30"]

1. e4 {[%emt 0:00:07]} c5 {[%emt 0:00:04]} 2. Nf3 {[%emt 0:00:05]} d6 {[%emt 0:00:05]} 3. d4 {[%emt 0:00:10]} cxd4 {[%emt 0:00:07]} 4. Nxd4 {[%emt 0:00:05]} Nf6 {[%emt 0:00:07]} 5. Nc3 {[%emt 0:00:05]} g6 {[%emt 0:00:10]} 6. Be3 {[%emt 0:00:09]} Bg7 {[%emt 0:00:09]} 7. f3 {[%emt 0:00:24]} O-O {[%emt 0:00:24]} 8. Qd2 {[%emt 0:00:10]} Nc6 {[%emt 0:00:19]} 9. Bc4 {[%emt 0:00:27]} Bd7 {[%emt 0:00:18]} 10. O-O-O {[%emt 0:00:19]} Rc8 {[%emt 0:00:33]} 11. Bb3 {[%emt 0:00:21]} Nxd4 {[%emt 0:01:22]} 12. Bxd4 {[%emt 0:00:11]} b5 {[%emt 0:01:12]} 13. Kb1 {[%emt 0:01:47]} b4 {[%emt 0:10:51]} 14. Nd5 {[%emt 0:02:29]} Nxd5 {[%emt 0:01:00]} 15. Bxg7 {[%emt 0:01:05]} Kxg7 $11 {[%emt 0:00:37]} 16. exd5 {[%emt 0:08:06]} a5 {[%emt 0:03:24]} 17. Qd4+ {[%emt 0:00:55]} Kg8 {[%emt 0:00:40]} 18. Bc4 {[%emt 0:05:07]} Rc5 {[%emt 0:05:59]} 19. Rhe1 {[%emt 0:17:38]} Bc8 {[%emt 0:13:49]} 20. Re2 {[%emt 0:19:48]} Qc7 {[%emt 0:09:54]} 21. b3 {[%emt 0:04:59]} a4 {[%emt 0:04:33]} 22. g4 {[%emt 0:08:20]} axb3 {[%emt 0:02:11]} 23. axb3 {[%emt 0:03:21]} Ra5 {[%emt 0:04:48]} 24. Kc1 {[%emt 0:05:47]} Qa7 {[%emt 0:14:09]} 25. Qxa7 {[%emt 0:11:45]} Rxa7 {[%emt 0:00:06]} 26. Rde1 {[%emt 0:04:26]} Re8 {[%emt 0:02:08]} 27. Kd2 {[%emt 0:02:40]} Kf8 {[%emt 0:01:13]} 28. Bb5 {[%emt 0:00:51]} Ba6 {[%emt 0:05:20]} 29. Bxe8 {[%emt 0:02:11]} Bxe2 {[%emt 0:00:06]} 30. Rxe2 {[%emt 0:00:02]} Kxe8 {[%emt 0:00:08]} 31. Re4 {[%emt 0:00:08]} Rb7 {[%emt 0:02:01]} 32. Kd3 {[%emt 0:01:08]} Kd7 {[%emt 0:02:10]} 33. Rc4 {[%emt 0:00:34]} e6 {[%emt 0:01:17]} 34. Kd4 {[%emt 0:00:36]} Rb5 {[%emt 0:02:38]} 35. dxe6+ {[%emt 0:00:11]} fxe6 {[%emt 0:00:11]} 36. f4 {[%emt 0:00:41]} Rd5+ {[%emt 0:01:19]} 37. Ke3 {[%emt 0:00:17]} Rb5 {[%emt 0:00:40]} 38. Kd4 {[%emt 0:00:02]} Rd5+ {[%emt 0:00:30]} 39. Ke3 {[%emt 0:00:02]} Rb5 {[%emt 0:01:13]} 40. Kd4 {[%emt 0:03:01]} 1/2-1/2

[Event "African Individual Chess-ch Women 2024"]
[Site "Accra"]
[Date "2024.03.19"]
[Round "8.1"]
[White "February, Jesse Nikki"]
[Black "Ofowino, Toritsemuwa"]
[Result "1-0"]
[ECO "C77"]
[WhiteElo "1920"]
[BlackElo "1950"]
[Annotator "RC"]
[PlyCount "85"]
[EventDate "2024.03.13"]
[EventCountry "GHA"]
[SourceTitle "playchess.com"]
[Source "ChessBase"]
[SourceQuality "1"]
[TimeControl "5400+30"]

1. e4 {[%emt 1:31:00]} e5 {[%emt 1:31:00]} 2. Nf3 {[%emt 0:00:30]} Nc6 {[%emt 0:00:30]} 3. Bb5 {[%emt 0:00:30]} a6 {[%emt 0:00:30]} 4. Ba4 {[%emt 0:00:30]} Nf6 {[%emt 0:00:30]} 5. d3 {[%emt 0:00:30]} b5 {[%emt 0:00:30]} 6. Bb3 {[%emt 0:00:30]} Bc5 {[%emt 0:00:30]} 7. Bg5 {[%emt 0:00:30]} h6 {[%emt 0:00:30]} 8. Bh4 {[%emt 0:00:30]} d6 {[%emt 0:00:30]} 9. Nc3 {[%emt 0:00:30]} Be6 {[%emt 0:00:30]} 10. Nd5 {[%emt 0:00:30]} Rb8 {[%emt 0:00:30]} 11. Nxf6+ {[%emt 0:00:30]} gxf6 {[%emt 0:00:30]} 12. c3 {[%emt 0:00:30]} Rg8 {[%emt 0:00:30]} 13. Qd2 {[%emt 0:00:30]} Rg6 {[%emt 0:00:30]} 14. Bg3 {[%emt 0:00:30]} d5 {[%emt 0:00:30]} 15. Nh4 {[%emt 0:00:30]} Rg8 16. Qxh6 {[%emt 0:00:30]} dxe4 {[%emt 0:01:00]} 17. Bxe6 {[%emt 0:00:30]} fxe6 {[%emt 0:00:30]} 18. Qh5+ {[%emt 0:00:30]} Kd7 {[%emt 0:00:30]} 19. d4 {[%emt 0:00:30]} Bd6 {[%emt 0:00:30]} 20. dxe5 {[%emt 0:00:30]} Nxe5 {[%emt 0:00:30]} 21. Bxe5 {[%emt 0:00:30]} Bxe5 {[%emt 0:00:30]} 22. O-O-O+ {[%emt 0:00:30]} Bd6 {[%emt 0:00:30]} 23. Rhe1 {[%emt 0:00:30]} f5 {[%emt 0:00:30]} 24. Nxf5 {[%emt 0:00:30]} exf5 {[%emt 0:00:30]} 25. Qxf5+ {[%emt 0:00:30]} Kc6 {[%emt 0:00:30]} 26. Qxe4+ {[%emt 0:00:30]} Kb6 {[%emt 0:00:30]} 27. f4 {[%emt 0:00:30]} Qh4 {[%emt 0:00:30]} 28. Qd4+ {[%emt 0:00:30]} Kb7 {[%emt 0:00:30]} 29. Qe4+ {[%emt 0:00:30]} Ka7 {[%emt 0:00:30]} 30. g3 {[%emt 0:00:30]} Qxh2 {[%emt 0:00:30]} 31. Rxd6 {[%emt 0:00:30]} cxd6 {[%emt 0:00:30]} 32. Qd4+ {[%emt 0:00:30]} Kb7 {[%emt 0:00:30]} 33. Qd5+ {[%emt 0:00:30]} Kb6 {[%emt 0:00:30]} 34. Qxd6+ {[%emt 0:00:30]} Ka7 {[%emt 0:00:30]} 35. Re7+ {[%emt 0:00:30]} Rb7 {[%emt 0:00:30]} 36. Rxb7+ {[%emt 0:00:30]} Kxb7 {[%emt 0:00:30]} 37. Qd5+ {[%emt 0:00:30]} Kb6 {[%emt 0:00:30]} 38. Qe6+ {[%emt 0:00:30]} Kc7 {[%emt 0:00:30]} 39. Qxg8 {[%emt 0:00:30]} Qh1+ {[%emt 0:00:30]} 40. Kc2 {[%emt 0:00:30]} Qe4+ {[%emt 0:00:30]} 41. Kd2 {[%emt 0:00:30]} Qg2+ {[%emt 0:00:30]} 42. Ke3 {[%emt 0:00:30]} Qg1+ {[%emt 0:00:30]} 43. Ke4 {[%emt 0:00:30]} 1-0

[Event "African Individual Chess-ch Women 2024"]
[Site "Accra"]
[Date "2024.03.19"]
[Round "8.2"]
[White "QUICKPEN, Deborah Ebimobo-ere"]
[Black "Wafa, Shahenda"]
[Result "1/2-1/2"]
[ECO "E94"]
[WhiteElo "1945"]
[BlackElo "2083"]
[Annotator "RC"]
[PlyCount "94"]
[EventDate "2024.03.13"]
[EventCountry "GHA"]
[SourceTitle "playchess.com"]
[Source "ChessBase"]
[SourceQuality "1"]
[TimeControl "5400+30"]

1. d4 {[%emt 0:00:10]} Nf6 {[%emt 0:00:31]} 2. c4 {[%emt 0:00:27]} g6 {[%emt 0:00:23]} 3. Nf3 {[%emt 0:00:29]} Bg7 {[%emt 0:00:09]} 4. Nc3 {[%emt 0:00:17]} O-O {[%emt 0:00:23]} 5. e4 {[%emt 0:00:12]} d6 {[%emt 0:00:06]} 6. Be2 {[%emt 0:00:25]} e5 {[%emt 0:00:17]} 7. O-O {[%emt 0:00:21]} exd4 {[%emt 0:06:30]} 8. Nxd4 {[%emt 0:00:42]} Nc6 {[%emt 0:00:46]} 9. Be3 {[%emt 0:01:59]} Re8 {[%emt 0:00:16]} 10. f3 {[%emt 0:00:54]} Nxd4 {[%emt 0:02:28]} 11. Bxd4 {[%emt 0:00:20]} c6 {[%emt 0:00:55]} 12. Qd2 {[%emt 0:01:51]} Be6 {[%emt 0:02:29]} 13. Rfd1 {[%emt 0:02:07]} Qa5 {[%emt 0:11:51]} 14. Rab1 {[%emt 0:08:25]} Red8 {[%emt 0:17:03]} 15. Kh1 {[%emt 0:03:09]} Qh5 {[%emt 0:02:49]} 16. Qf4 {[%emt 0:04:01]} Ne8 {[%emt 0:03:31]} 17. Bxg7 {[%emt 0:00:36]} Kxg7 {[%emt 0:00:14]} 18. b4 {[%emt 0:09:47]} a6 {[%emt 0:05:09]} 19. a4 {[%emt 0:05:09]} h6 {[%emt 0:06:34]} 20. Qg3 {[%emt 0:06:05]} Qg5 {[%emt 0:01:09]} 21. Qf2 {[%emt 0:02:13]} Qe5 {[%emt 0:05:26]} 22. Rbc1 {[%emt 0:05:21]} f5 {[%emt 0:01:30]} 23. exf5 {[%emt 0:08:37]} Qxf5 {[%emt 0:02:53]} 24. Bd3 {[%emt 0:02:27]} Qf7 {[%emt 0:00:45]} 25. Ne2 {[%emt 0:13:01]} d5 {[%emt 0:02:55]} 26. c5 {[%emt 0:01:56]} Bf5 {[%emt 0:00:41]} 27. Nd4 {[%emt 0:00:26]} Bxd3 {[%emt 0:00:25]} 28. Rxd3 {[%emt 0:00:05]} Nc7 {[%emt 0:00:52]} 29. Re1 {[%emt 0:00:59]} Re8 {[%emt 0:00:12]} 30. Rde3 {[%emt 0:00:37]} Rxe3 {[%emt 0:02:30]} 31. Rxe3 {[%emt 0:00:15]} Re8 {[%emt 0:03:58]} 32. Qe2 {[%emt 0:00:23]} Rxe3 {[%emt 0:01:34]} 33. Qxe3 {[%emt 0:00:07]} Qf6 {[%emt 0:02:10]} 34. Kg1 {[%emt 0:01:27]} h5 {[%emt 0:02:02]} 35. Kf1 {[%emt 0:01:48]} Kf7 {[%emt 0:00:15]} 36. Ke2 {[%emt 0:00:34]} Ne6 {[%emt 0:00:33]} 37. Nxe6 {[%emt 0:01:29]} Qxe6 {[%emt 0:00:06]} 38. Qxe6+ {[%emt 0:00:54]} Kxe6 {[%emt 0:00:07]} 39. f4 {[%emt 0:02:30]} Kf6 {[%emt 0:03:08]} 40. g3 {[%emt 0:02:46]} Kf5 {[%emt 0:02:17]} 41. Kf3 {[%emt 0:00:12]} Kf6 {[%emt 0:05:26]} 42. h3 {[%emt 0:00:42]} Kf5 {[%emt 0:03:40]} 43. g4+ {[%emt 0:02:53]} Ke6 {[%emt 0:00:34]} 44. Ke3 {[%emt 0:00:40]} Kf7 {[%emt 0:01:45]} 45. Kd3 {[%emt 0:00:28]} Ke7 {[%emt 0:02:31]} 46. Kd4 {[%emt 0:00:39]} Ke6 {[%emt 0:00:54]} 47. Kc3 {[%emt 0:01:08]} g5 {[%emt 0:00:00]} 1/2-1/2

[Event "African Individual Chess-ch Women 2024"]
[Site "Accra"]
[Date "2024.03.19"]
[Round "8.3"]
[White "Nassr, Lina"]
[Black "Nakabo, Peninah"]
[Result "1-0"]
[ECO "D04"]
[WhiteElo "2080"]
[BlackElo "1836"]
[Annotator "RC"]
[PlyCount "75"]
[EventDate "2024.03.13"]
[EventCountry "GHA"]
[SourceTitle "playchess.com"]
[Source "ChessBase"]
[SourceQuality "1"]
[TimeControl "5400+30"]

1. d4 {[%emt 0:00:12]} Nf6 {[%emt 0:00:19]} 2. Nf3 {[%emt 0:00:17]} d5 {[%emt 0:00:09]} 3. e3 {[%emt 0:00:08]} Bg4 {[%emt 0:00:19]} 4. Be2 {[%emt 0:00:44]} e6 {[%emt 0:00:15]} 5. Nbd2 {[%emt 0:00:45]} Bd6 {[%emt 0:02:19]} 6. h3 {[%emt 0:03:09]} Bf5 {[%emt 0:00:20]} 7. c4 {[%emt 0:04:51]} c6 {[%emt 0:01:20]} 8. Qb3 {[%emt 0:01:06]} Qb6 {[%emt 0:04:41]} 9. Qa4 {[%emt 0:06:09]} Qb4 {[%emt 0:04:41]} 10. Qd1 {[%emt 0:09:36]} Nbd7 {[%emt 0:09:22]} 11. O-O {[%emt 0:10:29]} Qa5 {[%emt 0:04:34]} 12. a3 {[%emt 0:02:12]} Rc8 {[%emt 0:01:19]} 13. b4 {[%emt 0:02:08]} Qd8 {[%emt 0:00:11]} 14. Bb2 {[%emt 0:01:34]} O-O {[%emt 0:02:54]} 15. Nh4 {[%emt 0:05:31]} Bg6 {[%emt 0:01:03]} 16. Nxg6 {[%emt 0:00:14]} hxg6 {[%emt 0:01:24]} 17. Bf3 {[%emt 0:04:52]} Bb8 {[%emt 0:01:46]} 18. e4 {[%emt 0:04:08]} dxe4 {[%emt 0:01:28]} 19. Nxe4 {[%emt 0:00:23]} Nxe4 {[%emt 0:00:11]} 20. Bxe4 {[%emt 0:00:04]} Qc7 {[%emt 0:04:38]} 21. g3 {[%emt 0:01:51]} f5 {[%emt 0:02:02]} 22. Bf3 {[%emt 0:05:21]} f4 {[%emt 0:02:47]} 23. g4 {[%emt 0:02:24]} g5 {[%emt 0:03:58]} 24. Qd3 {[%emt 0:09:37]} Rf6 {[%emt 0:02:01]} 25. Rae1 {[%emt 0:02:24]} Rh6 {[%emt 0:06:34]} 26. Kg2 {[%emt 0:00:44]} Re8 {[%emt 0:06:00]} 27. Re2 {[%emt 0:06:43]} Qd6 {[%emt 0:04:51]} 28. Rfe1 {[%emt 0:02:49]} b6 {[%emt 0:06:31]} 29. Qe4 {[%emt 0:02:56]} c5 {[%emt 0:02:17]} 30. Qc6 {[%emt 0:09:11]} Qe7 {[%emt 0:02:28]} 31. Rxe6 {[%emt 0:01:16]} Rxe6 {[%emt 0:01:09]} 32. Rxe6 {[%emt 0:00:06]} Qd8 {[%emt 0:02:29]} 33. dxc5 {[%emt 0:01:18]} bxc5 {[%emt 0:01:11]} 34. Bd5 {[%emt 0:00:47]} Kf8 {[%emt 0:01:17]} 35. Bxg7+ {[%emt 0:01:09]} Kxg7 {[%emt 0:00:47]} 36. Rg6+ {[%emt 0:00:04]} Kf8 {[%emt 0:09:21]} 37. Rg8+ {[%emt 0:00:06]} Ke7 {[%emt 0:00:29]} 38. Qe6# {[%emt 0:00:04]} 1-0

[Event "African Individual Chess-ch Women 2024"]
[Site "Accra"]
[Date "2024.03.19"]
[Round "8.4"]
[White "Paulo, Jemima"]
[Black "Mbatha, Constance"]
[Result "0-1"]
[ECO "A13"]
[WhiteElo "1946"]
[BlackElo "1799"]
[Annotator "RC"]
[PlyCount "77"]
[EventDate "2024.03.13"]
[EventCountry "GHA"]
[SourceTitle "playchess.com"]
[Source "ChessBase"]
[SourceQuality "1"]
[TimeControl "5400+30"]

1. c4 {[%emt 0:00:13]} Nc6 {[%emt 0:00:43]} 2. Nf3 {[%emt 0:00:23]} e6 {[%emt 0:00:13]} 3. g3 {[%emt 0:03:42]} g6 {[%emt 0:00:36]} 4. Bg2 {[%emt 0:00:06]} Bg7 {[%emt 0:00:09]} 5. d4 {[%emt 0:00:06]} d5 {[%emt 0:00:13]} 6. cxd5 {[%emt 0:00:21]} exd5 {[%emt 0:00:44]} 7. Nc3 {[%emt 0:00:09]} Nge7 {[%emt 0:00:08]} 8. O-O {[%emt 0:00:48]} O-O {[%emt 0:00:05]} 9. Bf4 {[%emt 0:00:06]} a6 {[%emt 0:00:44]} 10. Rc1 {[%emt 0:00:45]} Be6 {[%emt 0:01:20]} 11. Qd2 {[%emt 0:01:50]} Rc8 {[%emt 0:03:54]} 12. Bh6 {[%emt 0:01:54]} Re8 {[%emt 0:03:27]} 13. Bxg7 {[%emt 0:00:09]} Kxg7 {[%emt 0:00:09]} 14. Na4 {[%emt 0:00:22]} b6 {[%emt 0:00:56]} 15. h4 {[%emt 0:00:07]} h6 {[%emt 0:01:34]} 16. b3 {[%emt 0:02:54]} Na5 {[%emt 0:03:25]} 17. Rc3 {[%emt 0:00:36]} Nb7 {[%emt 0:00:14]} 18. Rfc1 {[%emt 0:00:49]} Nd6 {[%emt 0:00:28]} 19. Ne5 {[%emt 0:00:51]} f6 {[%emt 0:05:39]} 20. Nd3 {[%emt 0:34:07]} Bf7 {[%emt 0:21:07]} 21. Nb4 {[%emt 0:02:02]} a5 {[%emt 0:01:54]} 22. Nc6 {[%emt 0:00:13]} Nxc6 {[%emt 0:00:55]} 23. Rxc6 {[%emt 0:00:12]} Re7 {[%emt 0:02:57]} 24. R6c2 {[%emt 0:02:13]} f5 {[%emt 0:07:54]} 25. Qf4 {[%emt 0:02:19]} Re8 {[%emt 0:04:04]} 26. Nc3 {[%emt 0:05:27]} Ne4 {[%emt 0:12:41]} 27. Nb5 {[%emt 0:00:47]} c5 {[%emt 0:01:41]} 28. Bxe4 {[%emt 0:01:05]} Rxe4 {[%emt 0:02:39]} 29. Qd2 {[%emt 0:01:09]} Qd7 {[%emt 0:02:31]} 30. a4 {[%emt 0:01:08]} Rce8 {[%emt 0:02:05]} 31. dxc5 {[%emt 0:00:13]} bxc5 {[%emt 0:00:37]} 32. Rxc5 {[%emt 0:00:23]} Rxe2 {[%emt 0:05:28]} 33. Qd4+ {[%emt 0:00:06]} Kg8 {[%emt 0:00:37]} 34. Rc7 {[%emt 0:00:52]} Qe6 {[%emt 0:01:09]} 35. R1c6 {[%emt 0:03:44]} Qe5 {[%emt 0:04:46]} 36. Qxe5 {[%emt 0:00:44]} Re4 {[%emt 0:10:44]} 37. Qxe8+ Rxe8 {[%emt 0:00:00]} 38. Nd6 {[%emt 0:01:15]} Re5 {[%emt 0:00:00]} 39. Nxf7 {[%emt 0:06:42]} 0-1

[Event "African Individual Chess-ch Women 2024"]
[Site "Accra"]
[Date "2024.03.19"]
[Round "8.5"]
[White "Banda Natalie Katlo"]
[Black "Marochkina, Nadezhda Valerevna"]
[Result "1-0"]
[ECO "D04"]
[WhiteElo "1772"]
[BlackElo "1819"]
[Annotator "NA RC"]
[PlyCount "53"]
[EventDate "2024.03.13"]
[EventCountry "GHA"]
[SourceTitle "playchess.com"]
[Source "ChessBase"]
[SourceQuality "1"]
[TimeControl "5400+30"]

1. d4 {[%emt 0:00:02]} d5 {[%emt 0:01:39]} 2. Nf3 {[%emt 0:00:06]} Nf6 {[%emt 0:00:23]} 3. e3 {[%emt 0:00:20]} Bg4 {[%emt 0:00:11]} 4. c4 {[%emt 0:00:14]} e6 {[%emt 0:00:16]} 5. Nc3 {[%emt 0:00:07]} Nbd7 {[%emt 0:04:03]} 6. Qb3 {[%emt 0:02:38]} dxc4 {[%emt 0:03:55]} 7. Qxb7 {[%emt 0:01:25]} Nb6 {[%emt 0:01:37]} 8. Bxc4 {[%emt 0:01:11]} Nxc4 {[%emt 0:04:43]} 9. Qc6+ {[%emt 0:00:09]} Nd7 {[%emt 0:00:06]} 10. Qxc4 {[%emt 0:00:05]} a6 {[%emt 0:01:44]} 11. Qc6 {[%emt 0:00:47]} Bxf3 {[%emt 0:03:30]} 12. Qxf3 {[%emt 0:01:50]} c5 {[%emt 0:00:45]} 13. dxc5 {[%emt 0:01:34]} Bxc5 {[%emt 0:01:10]} 14. Qg3 {[%emt 0:02:24]} O-O {[%emt 0:01:00]} 15. e4 {[%emt 0:01:24]} Bb4 {[%emt 0:03:18]} 16. O-O {[%emt 0:03:29]} Qf6 {[%emt 0:05:13]} 17. Bd2 {[%emt 0:06:59]} Rfd8 {[%emt 0:06:10]} 18. Bg5 {[%emt 0:00:10]} Qd4 {[%emt 0:01:10]} 19. Bxd8 {[%emt 0:00:40]} Rxd8 {[%emt 0:00:09]} 20. Qc7 {[%emt 0:00:40]} Ne5 {[%emt 0:00:49]} 21. Rfd1 {[%emt 0:00:15]} Nd3 {[%emt 0:00:23]} 22. Rd2 {[%emt 0:02:13]} Bc5 {[%emt 0:03:43]} 23. Rad1 {[%emt 0:01:17]} h6 {[%emt 0:01:43]} 24. Qg3 {[%emt 0:00:45]} Qc4 {[%emt 0:07:14]} 25. Rxd3 {[%emt 0:00:40]} Bxf2+ {[%emt 0:00:19]} 26. Kxf2 {[%emt 0:00:08]} Rxd3 {[%emt 0:00:05]} 27. Qxd3 {[%emt 0:00:05]} 1-0

[Event "African Individual Chess-ch Women 2024"]
[Site "Accra"]
[Date "2024.03.19"]
[Round "8.6"]
[White "Haile, Lidet Abate"]
[Black "Shaba, Linda Dalitso"]
[Result "1-0"]
[ECO "C02"]
[WhiteElo "1798"]
[BlackElo "1836"]
[Annotator "NA RC"]
[PlyCount "61"]
[EventDate "2024.03.13"]
[EventCountry "GHA"]
[SourceTitle "playchess.com"]
[Source "ChessBase"]
[SourceQuality "1"]
[TimeControl "5400+30"]

1. e4 {[%emt 0:00:08]} e6 {[%emt 0:00:15]} 2. d4 {[%emt 0:00:23]} d5 {[%emt 0:00:08]} 3. e5 {[%emt 0:01:13]} c5 {[%emt 0:00:07]} 4. c3 {[%emt 0:00:06]} Nc6 {[%emt 0:00:06]} 5. Nf3 {[%emt 0:00:29]} Qb6 {[%emt 0:00:45]} 6. Bd3 {[%emt 0:00:41]} Bd7 {[%emt 0:00:12]} 7. dxc5 {[%emt 0:02:06]} Bxc5 {[%emt 0:00:13]} 8. O-O {[%emt 0:00:37]} a5 {[%emt 0:03:03]} 9. a4 {[%emt 0:02:06]} Nge7 {[%emt 0:04:08]} 10. Na3 {[%emt 0:02:47]} Ng6 {[%emt 0:03:02]} 11. Qe2 {[%emt 0:03:59]} Nce7 {[%emt 0:08:12]} 12. Nb5 {[%emt 0:07:15]} O-O {[%emt 0:06:18]} 13. h4 {[%emt 0:03:13]} Bxb5 {[%emt 0:01:07]} 14. Bxb5 {[%emt 0:02:27]} f6 {[%emt 0:04:46]} 15. exf6 {[%emt 0:04:01]} gxf6 {[%emt 0:10:20]} 16. h5 {[%emt 0:18:53]} Nh8 {[%emt 0:00:45]} 17. Bh6 {[%emt 0:07:00]} Rfd8 {[%emt 0:04:09]} 18. Nh4 {[%emt 0:03:09]} Kf7 {[%emt 0:04:45]} 19. Qd3 {[%emt 0:05:23]} f5 {[%emt 0:03:15]} 20. Nf3 {[%emt 0:02:05]} Qd6 {[%emt 0:17:42]} 21. Rae1 {[%emt 0:02:03]} Rg8 {[%emt 0:04:47]} 22. Ne5+ {[%emt 0:06:11]} Kf6 {[%emt 0:00:28]} 23. Qh3 {[%emt 0:03:32]} Rg4 {[%emt 0:04:06]} 24. Nxg4+ {[%emt 0:01:06]} fxg4 {[%emt 0:00:02]} 25. Qxg4 {[%emt 0:00:02]} Rg8 {[%emt 0:00:47]} 26. Qh4+ {[%emt 0:01:31]} Kf7 {[%emt 0:00:18]} 27. Bf4 {[%emt 0:00:47]} Qb6 {[%emt 0:05:36]} 28. Be5 {[%emt 0:01:25]} Kf8 {[%emt 0:06:41]} 29. Bxh8 {[%emt 0:01:31]} Rxh8 {[%emt 0:00:32]} 30. Qf6+ {[%emt 0:00:16]} Kg8 {[%emt 0:00:26]} 31. Be8 {[%emt 0:00:17]} 1-0

[Event "African Individual Chess-ch Women 2024"]
[Site "Accra"]
[Date "2024.03.19"]
[Round "8.7"]
[White "Laubscher, Anzel"]
[Black "Junior, Ednasia"]
[Result "1/2-1/2"]
[ECO "A04"]
[WhiteElo "1820"]
[BlackElo "1915"]
[Annotator "RC"]
[PlyCount "115"]
[EventDate "2024.03.13"]
[EventCountry "GHA"]
[SourceTitle "playchess.com"]
[Source "ChessBase"]
[SourceQuality "1"]
[TimeControl "5400+30"]

1. e4 c5 2. Nf3 Nc6 3. g3 g6 4. Bg2 Bg7 5. O-O d6 6. c3 {[%emt 0:03:00]} e5 {[%emt 0:03:00]} 7. d3 {[%emt 0:03:28]} Nge7 {[%emt 1:31:00]} 8. Nh4 O-O {[%emt 0:00:00]} 9. f4 {[%emt 0:13:01]} f5 {[%emt 0:00:00]} 10. Nd2 {[%emt 0:06:31]} Be6 {[%emt 0:00:00]} 11. Ndf3 {[%emt 0:05:59]} h6 {[%emt 0:00:00]} 12. exf5 {[%emt 0:12:02]} gxf5 {[%emt 0:00:00]} 13. Qe2 {[%emt 0:07:57]} Rc8 {[%emt 0:00:00]} 14. fxe5 {[%emt 0:07:07]} dxe5 {[%emt 0:00:00]} 15. Be3 {[%emt 0:06:33]} b6 {[%emt 0:00:00]} 16. Nd2 {[%emt 0:01:58]} Qd7 {[%emt 0:00:00]} 17. Nc4 {[%emt 0:06:56]} Rf7 {[%emt 0:00:00]} 18. Bf3 {[%emt 0:05:46]} Qc7 {[%emt 0:00:00]} 19. g4 {[%emt 0:04:38]} f4 {[%emt 0:00:00]} 20. Bf2 {[%emt 0:00:46]} Qd7 {[%emt 0:00:00]} 21. h3 {[%emt 0:15:18]} Bf6 22. Kh2 Kh8 23. Be4 Rg7 24. Rg1 Rcg8 25. Nf3 {[%emt 0:00:00]} Bd5 {[%emt 0:00:00]} 26. g5 {[%emt 0:02:30]} Bxg5 {[%emt 0:05:20]} 27. Nxg5 {[%emt 0:00:00]} Rxg5 {[%emt 0:00:19]} 28. Bh4 {[%emt 0:00:00]} Rxg1 {[%emt 0:01:32]} 29. Bf6+ {[%emt 0:00:06]} R1g7 {[%emt 0:01:29]} 30. Qh5 {[%emt 0:00:58]} Bxe4 {[%emt 0:00:49]} 31. dxe4 {[%emt 0:00:11]} Nf5 {[%emt 0:00:37]} 32. exf5 {[%emt 0:00:13]} Kh7 {[%emt 0:00:37]} 33. Bxg7 {[%emt 0:00:33]} Rxg7 {[%emt 0:00:03]} 34. Re1 {[%emt 0:01:14]} Rg5 {[%emt 0:00:30]} 35. Qe2 {[%emt 0:00:33]} Qxf5 {[%emt 0:00:18]} 36. Nd6 {[%emt 0:00:38]} Qe6 {[%emt 0:01:11]} 37. Qe4+ {[%emt 0:00:27]} Kg7 {[%emt 0:01:25]} 38. Qxc6 {[%emt 0:00:17]} Rg3 {[%emt 0:00:17]} 39. Ne8+ {[%emt 0:00:42]} Kf7 {[%emt 0:00:25]} 40. Qxe6+ {[%emt 0:00:26]} Kxe6 {[%emt 0:00:02]} 41. c4 {[%emt 0:00:00]} Rd3 {[%emt 0:00:00]} 42. Nc7+ {[%emt 0:00:00]} Kf5 {[%emt 0:00:00]} 43. Re2 {[%emt 0:00:00]} e4 {[%emt 0:00:00]} 44. Nd5 {[%emt 0:00:00]} e3 {[%emt 0:00:00]} 45. Kg2 {[%emt 0:00:00]} Ke4 {[%emt 0:00:00]} 46. Nf6+ {[%emt 0:00:00]} Kf5 {[%emt 0:00:00]} 47. Nd5 {[%emt 0:00:00]} b5 {[%emt 0:00:00]} 48. b3 {[%emt 0:00:00]} bxc4 {[%emt 0:00:00]} 49. bxc4 {[%emt 0:00:00]} Rd4 {[%emt 0:00:00]} 50. Kf3 {[%emt 0:00:01]} Rxc4 {[%emt 0:00:00]} 51. Rxe3 {[%emt 0:00:29]} Rd4 {[%emt 0:01:22]} 52. Ne7+ {[%emt 0:00:25]} Kg5 {[%emt 0:01:52]} 53. Rc3 {[%emt 0:02:11]} Kf6 {[%emt 0:04:52]} 54. Nc6 {[%emt 0:00:54]} Ra4 {[%emt 0:00:00]} 55. a3 {[%emt 0:00:30]} Ke6 {[%emt 0:00:00]} 56. Rxc5 {[%emt 0:01:12]} Rxa3+ {[%emt 0:00:00]} 57. Kxf4 {[%emt 0:00:20]} Rxh3 {[%emt 0:00:00]} 58. Nxa7 {[%emt 0:00:34]} 1/2-1/2